[Event "*** Titled Tuesday Blitz"]
[Site "Chess.com"]
[Date "2019.07.02"]
[Round "2"]
[White "Chesstrainer1"]
[Black "ChainsOfFantasia"]
[Result "0-1"]
[WhiteElo "2407"]
[BlackElo "2465"]
[TimeControl "180+2"]
[EndTime "13:26:01 PDT"]
[Termination "ChainsOfFantasia won by resignation"]

1. d4 {[%clk 0:03:01.9]} 1... Nf6 {[%clk 0:03:00.7]} 2. c4 {[%clk 0:03:02.7]}
2... e6 {[%clk 0:03:00.9]} 3. g3 {[%clk 0:03:03.2]} 3... d5 {[%clk 0:03:02.8]}
4. Bg2 {[%clk 0:03:03.4]} 4... Be7 {[%clk 0:03:04.2]} 5. Nf3 {[%clk 0:03:04.1]}
5... O-O {[%clk 0:03:04.8]} 6. O-O {[%clk 0:03:05.1]} 6... dxc4 {[%clk
0:03:06.2]} 7. Ne5 {[%clk 0:03:05.7]} 7... c5 {[%clk 0:03:06]} 8. dxc5 {[%clk
0:03:03.3]} 8... Qc7 {[%clk 0:03:07.3]} 9. Nxc4 {[%clk 0:03:02.5]} 9... Rd8
{[%clk 0:03:04.8]} 10. Nbd2 {[%clk 0:02:58.9]} 10... Nc6 {[%clk 0:03:03.3]} 11.
Qa4 {[%clk 0:02:32.3]} 11... Bxc5 {[%clk 0:03:01.9]} 12. Nb3 {[%clk 0:02:32.3]}
12... Nd4 {[%clk 0:02:40.8]} 13. Nxd4 {[%clk 0:02:24.8]} 13... Bxd4 {[%clk
0:02:28.1]} 14. Bf4 {[%clk 0:02:21.4]} 14... e5 {[%clk 0:02:25.4]} 15. Bg5
{[%clk 0:02:17]} 15... b5 {[%clk 0:02:10.3]} 16. Qa5 {[%clk 0:01:59.5]} 16...
Qxa5 {[%clk 0:01:39.9]} 17. Nxa5 {[%clk 0:02:00]} 17... Bg4 {[%clk 0:01:32.4]}
18. Bxa8 {[%clk 0:01:10.6]} 18... Rxa8 {[%clk 0:01:34.3]} 19. Nc6 {[%clk
0:01:07.8]} 19... Bxe2 {[%clk 0:01:26.9]} 20. Rfe1 {[%clk 0:01:01]} 20... Bf3
{[%clk 0:01:27]} 21. Nxe5 {[%clk 0:00:56.6]} 21... Bb7 {[%clk 0:00:53.2]} 22.
Rab1 {[%clk 0:00:29.9]} 22... Ne4 {[%clk 0:00:48.7]} 23. Be3 {[%clk 0:00:28.2]}
23... Bxe5 {[%clk 0:00:48.5]} 24. f3 {[%clk 0:00:17.5]} 24... Nd6 {[%clk
0:00:46.6]} 25. Bc5 {[%clk 0:00:18.4]} 25... Nc4 {[%clk 0:00:35]} 26. b3 {[%clk
0:00:18.8]} 26... Bd6 {[%clk 0:00:36.3]} 27. Bxd6 {[%clk 0:00:16.2]} 27... Nxd6
{[%clk 0:00:38.2]} 28. Re7 {[%clk 0:00:17.1]} 28... Bxf3 {[%clk 0:00:37.5]} 29.
Rc1 {[%clk 0:00:18.4]} 29... h6 {[%clk 0:00:31]} 30. Rcc7 {[%clk 0:00:19.3]}
30... a5 {[%clk 0:00:27.5]} 31. Rcd7 {[%clk 0:00:20.5]} 31... Ra6 {[%clk
0:00:28.4]} 32. Rd8+ {[%clk 0:00:18.5]} 32... Kh7 {[%clk 0:00:29.1]} 33. Red7
{[%clk 0:00:20]} 33... Ne4 {[%clk 0:00:26.9]} 34. Rxf7 {[%clk 0:00:20.4]} 34...
Bh5 {[%clk 0:00:27.9]} 35. Re7 {[%clk 0:00:21.1]} 35... Ng5 {[%clk 0:00:26.4]}
36. Rdd7 {[%clk 0:00:21.6]} 36... Rg6 {[%clk 0:00:27.8]} 37. Kf2 {[%clk
0:00:20.6]} 37... Nh3+ {[%clk 0:00:26.5]} 38. Ke3 {[%clk 0:00:21.1]} 38... a4
{[%clk 0:00:25.1]} 39. bxa4 {[%clk 0:00:20.4]} 39... bxa4 {[%clk 0:00:27]} 40.
Ra7 {[%clk 0:00:21.7]} 40... Bd1 {[%clk 0:00:28]} 41. Red7 {[%clk 0:00:22.2]}
41... Bc2 {[%clk 0:00:28.7]} 42. Rdc7 {[%clk 0:00:22.6]} 42... Bd1 {[%clk
0:00:29.9]} 43. Rd7 {[%clk 0:00:23.5]} 43... Bg4 {[%clk 0:00:29.3]} 44. Rd8
{[%clk 0:00:20]} 44... Ng5 {[%clk 0:00:25.8]} 45. Rxa4 {[%clk 0:00:19.4]} 45...
Re6+ {[%clk 0:00:26.9]} 46. Kd4 {[%clk 0:00:16]} 46... Nf3+ {[%clk 0:00:27.3]}
47. Kc5 {[%clk 0:00:16.7]} 47... Nxh2 {[%clk 0:00:26]} 48. Raa8 {[%clk
0:00:14.4]} 48... h5 {[%clk 0:00:26.4]} 49. Rab8 {[%clk 0:00:13.5]} 49... Nf1
{[%clk 0:00:24.8]} 50. Rd3 {[%clk 0:00:12.7]} 50... Kh6 {[%clk 0:00:23.4]} 51.
a4 {[%clk 0:00:13.1]} 51... Re5+ {[%clk 0:00:24.5]} 52. Kb6 {[%clk 0:00:12.7]}
52... Re6+ {[%clk 0:00:25.4]} 53. Kc7 {[%clk 0:00:12]} 53... Be2 {[%clk
0:00:24.5]} 54. Rc3 {[%clk 0:00:12.1]} 54... Kg5 {[%clk 0:00:25.5]} 55. a5
{[%clk 0:00:11.3]} 55... Kg4 {[%clk 0:00:26]} 56. Rb6 {[%clk 0:00:12]} 56...
Re7+ {[%clk 0:00:25.6]} 57. Kd6 {[%clk 0:00:12]} 57... Ra7 {[%clk 0:00:24.6]}
58. Rb4+ {[%clk 0:00:13.1]} 58... Kg5 {[%clk 0:00:22.9]} 59. Rc5+ {[%clk
0:00:13.1]} 59... Kh6 {[%clk 0:00:24.1]} 60. Rb6 {[%clk 0:00:12.5]} 60... Nxg3
{[%clk 0:00:23]} 61. Ke5+ {[%clk 0:00:13]} 61... g6 {[%clk 0:00:23.5]} 62. Kf6
{[%clk 0:00:09.8]} 62... Ne4+ {[%clk 0:00:24]} 0-1

[Event "*** Titled Tuesday Blitz"]
[Site "Chess.com"]
[Date "2019.07.02"]
[Round "2"]
[White "AndrewMaco"]
[Black "larso"]
[Result "1-0"]
[WhiteElo "2588"]
[BlackElo "2790"]
[TimeControl "180+2"]
[EndTime "13:26:06 PDT"]
[Termination "AndrewMaco won by resignation"]

1. e4 {[%clk 0:03:01.9]} 1... e6 {[%clk 0:02:59.1]} 2. d4 {[%clk 0:03:02]} 2...
d5 {[%clk 0:03:00.3]} 3. Nc3 {[%clk 0:03:03.4]} 3... Nf6 {[%clk 0:03:00.7]} 4.
e5 {[%clk 0:03:04.8]} 4... Nfd7 {[%clk 0:03:02.3]} 5. f4 {[%clk 0:03:06.4]} 5...
c5 {[%clk 0:03:03.7]} 6. Nf3 {[%clk 0:03:08.1]} 6... Nc6 {[%clk 0:03:05.1]} 7.
Be3 {[%clk 0:03:09.7]} 7... Be7 {[%clk 0:03:06.3]} 8. Qd2 {[%clk 0:03:10.5]}
8... O-O {[%clk 0:03:06]} 9. Bd3 {[%clk 0:03:01.7]} 9... f6 {[%clk 0:02:52]} 10.
O-O {[%clk 0:02:22.2]} 10... fxe5 {[%clk 0:02:46.4]} 11. fxe5 {[%clk 0:02:03.2]}
11... cxd4 {[%clk 0:02:44.6]} 12. Nxd4 {[%clk 0:02:02.9]} 12... Ndxe5 {[%clk
0:02:44.6]} 13. Rxf8+ {[%clk 0:02:00.8]} 13... Bxf8 {[%clk 0:02:44.3]} 14. Be2
{[%clk 0:01:52.5]} 14... Bd7 {[%clk 0:02:42.3]} 15. Rf1 {[%clk 0:01:52.5]} 15...
Bd6 {[%clk 0:02:42.1]} 16. Ndb5 {[%clk 0:01:51]} 16... Bb8 {[%clk 0:02:39.2]}
17. Bg5 {[%clk 0:01:46.5]} 17... Qe8 {[%clk 0:02:37.8]} 18. Kh1 {[%clk
0:01:31.2]} 18... a6 {[%clk 0:02:36.6]} 19. Nd4 {[%clk 0:01:32]} 19... Bd6
{[%clk 0:02:36.5]} 20. Nb3 {[%clk 0:01:09.7]} 20... Qg6 {[%clk 0:02:35.2]} 21.
Bh4 {[%clk 0:01:07.4]} 21... Rf8 {[%clk 0:02:35.5]} 22. Rxf8+ {[%clk 0:01:07.7]}
22... Bxf8 {[%clk 0:02:37.4]} 23. Bg3 {[%clk 0:01:08.3]} 23... Qf6 {[%clk
0:02:35.4]} 24. Kg1 {[%clk 0:01:05.1]} 24... Bd6 {[%clk 0:02:29]} 25. Ne4 {[%clk
0:01:05.9]} 25... Qe7 {[%clk 0:01:53.5]} 26. Nxd6 {[%clk 0:01:07]} 26... Qxd6
{[%clk 0:01:55.1]} 27. Qf4 {[%clk 0:01:08.6]} 27... Qe7 {[%clk 0:01:52]} 28. Qe3
{[%clk 0:01:04.6]} 28... Nf7 {[%clk 0:01:49.1]} 29. c4 {[%clk 0:01:05.2]} 29...
h6 {[%clk 0:01:40.8]} 30. h3 {[%clk 0:01:00.1]} 30... Qf6 {[%clk 0:01:41.4]} 31.
Nc5 {[%clk 0:00:57.6]} 31... d4 {[%clk 0:01:00.4]} 32. Nxd7 {[%clk 0:00:58.3]}
32... dxe3 {[%clk 0:01:01.5]} 33. Nxf6+ {[%clk 0:00:59.6]} 33... gxf6 {[%clk
0:01:02.8]} 34. Bf4 {[%clk 0:01:00.9]} 34... Kg7 {[%clk 0:01:01.3]} 35. Bxe3
{[%clk 0:01:01.2]} 35... Nfe5 {[%clk 0:01:02.8]} 36. Kf1 {[%clk 0:00:46.5]}
36... Nb4 {[%clk 0:00:56.9]} 37. a3 {[%clk 0:00:46]} 37... Nbc6 {[%clk
0:00:57.9]} 38. b4 {[%clk 0:00:45.8]} 38... Ne7 {[%clk 0:00:59.1]} 39. g4 {[%clk
0:00:41.5]} 39... Kg6 {[%clk 0:00:56.9]} 40. Ke1 {[%clk 0:00:41.2]} 40... f5
{[%clk 0:00:57]} 41. Kd2 {[%clk 0:00:41.1]} 41... Nf7 {[%clk 0:00:51.2]} 42. Bf3
{[%clk 0:00:34.6]} 42... Nd6 {[%clk 0:00:49.9]} 43. Kd3 {[%clk 0:00:30.7]} 43...
e5 {[%clk 0:00:49.2]} 44. gxf5+ {[%clk 0:00:31.1]} 44... Kxf5 {[%clk 0:00:49.9]}
45. Bg4+ {[%clk 0:00:28.6]} 45... Kg6 {[%clk 0:00:51.1]} 46. Bc5 {[%clk
0:00:29.9]} 46... Nef5 {[%clk 0:00:33.1]} 47. Bf3 {[%clk 0:00:27.7]} 47... Kg5
{[%clk 0:00:29.8]} 48. Bxd6 {[%clk 0:00:28.2]} 48... Nxd6 {[%clk 0:00:30.5]} 49.
c5 {[%clk 0:00:29.7]} 49... Nb5 {[%clk 0:00:30]} 50. a4 {[%clk 0:00:30.8]} 50...
Nc7 {[%clk 0:00:27.1]} 51. Bxb7 {[%clk 0:00:31]} 51... Kf4 {[%clk 0:00:29]} 52.
Bc6 {[%clk 0:00:30.1]} 52... Ne6 {[%clk 0:00:28.3]} 53. Bd5 {[%clk 0:00:29.7]}
53... Nc7 {[%clk 0:00:28.4]} 54. Bc6 {[%clk 0:00:20.9]} 54... Ne6 {[%clk
0:00:23.9]} 55. Bb7 {[%clk 0:00:21.8]} 55... Nc7 {[%clk 0:00:24.4]} 56. Bg2
{[%clk 0:00:21.2]} 56... h5 {[%clk 0:00:21]} 57. c6 {[%clk 0:00:21.6]} 57... h4
{[%clk 0:00:21.7]} 58. Kc4 {[%clk 0:00:22.9]} 58... e4 {[%clk 0:00:22.9]} 59. b5
{[%clk 0:00:23.9]} 59... e3 {[%clk 0:00:23.8]} 60. Bf1 {[%clk 0:00:25.1]} 60...
axb5+ {[%clk 0:00:23.9]} 61. axb5 {[%clk 0:00:27]} 61... Ne6 {[%clk 0:00:22.8]}
62. b6 {[%clk 0:00:27.2]} 62... Kf3 {[%clk 0:00:24.5]} 63. c7 {[%clk 0:00:25.4]}
63... Kf2 {[%clk 0:00:25.9]} 64. c8=Q {[%clk 0:00:25.2]} 64... Ng5 {[%clk
0:00:27.6]} 65. Qf5+ {[%clk 0:00:26]} 65... Nf3 {[%clk 0:00:28.9]} 66. Kd3
{[%clk 0:00:20.1]} 66... e2 {[%clk 0:00:30]} 67. Bxe2 {[%clk 0:00:20.1]} 67...
Ke1 {[%clk 0:00:31.9]} 68. Bxf3 {[%clk 0:00:20.6]} 1-0

[Event "*** Titled Tuesday Blitz"]
[Site "Chess.com"]
[Date "2019.07.02"]
[Round "2"]
[White "Fins0905"]
[Black "ElGasanov"]
[Result "0-1"]
[WhiteElo "2736"]
[BlackElo "2714"]
[TimeControl "180+2"]
[EndTime "13:26:12 PDT"]
[Termination "ElGasanov won by resignation"]

1. d4 {[%clk 0:03:01.9]} 1... d5 {[%clk 0:02:59.9]} 2. c4 {[%clk 0:03:02.5]}
2... dxc4 {[%clk 0:03:01.3]} 3. Nf3 {[%clk 0:03:03]} 3... a6 {[%clk 0:03:01.7]}
4. a4 {[%clk 0:03:03.5]} 4... Nc6 {[%clk 0:03:00.8]} 5. e3 {[%clk 0:03:00.3]}
5... Bg4 {[%clk 0:03:01.7]} 6. Bxc4 {[%clk 0:03:00.5]} 6... e6 {[%clk
0:03:02.9]} 7. h3 {[%clk 0:03:01.4]} 7... Bh5 {[%clk 0:03:02.7]} 8. Nc3 {[%clk
0:03:02.5]} 8... Nf6 {[%clk 0:03:03.4]} 9. g4 {[%clk 0:02:58.2]} 9... Bg6 {[%clk
0:03:04.2]} 10. Nh4 {[%clk 0:02:59.7]} 10... Nd5 {[%clk 0:02:44.7]} 11. Nxg6
{[%clk 0:02:56.9]} 11... hxg6 {[%clk 0:02:46.3]} 12. Bd2 {[%clk 0:02:47.5]}
12... Nb6 {[%clk 0:02:38.3]} 13. Bf1 {[%clk 0:02:38.4]} 13... e5 {[%clk
0:02:37.2]} 14. Bg2 {[%clk 0:02:18.4]} 14... exd4 {[%clk 0:02:35.7]} 15. exd4
{[%clk 0:02:19.2]} 15... Qxd4 {[%clk 0:02:23]} 16. Bxc6+ {[%clk 0:02:18.8]}
16... bxc6 {[%clk 0:02:21.8]} 17. Qf3 {[%clk 0:02:20.4]} 17... Qe5+ {[%clk
0:02:01.3]} 18. Be3 {[%clk 0:02:13.7]} 18... Nd5 {[%clk 0:01:54.6]} 19. O-O
{[%clk 0:02:14.5]} 19... Bd6 {[%clk 0:01:51.6]} 20. Rfe1 {[%clk 0:02:01.6]}
20... O-O-O {[%clk 0:01:27.6]} 21. Qg2 {[%clk 0:01:51.7]} 21... Rhe8 {[%clk
0:01:11.2]} 22. Nxd5 {[%clk 0:01:32.9]} 22... Qxd5 {[%clk 0:01:10.1]} 23. Rec1
{[%clk 0:01:27.5]} 23... Re4 {[%clk 0:01:04]} 24. Rd1 {[%clk 0:01:21.8]} 24...
Qe5 {[%clk 0:01:02.4]} 25. Rac1 {[%clk 0:01:16.1]} 25... Kb7 {[%clk 0:00:56.8]}
26. Kf1 {[%clk 0:01:11]} 26... f5 {[%clk 0:00:55.6]} 27. Qf3 {[%clk 0:01:07.6]}
27... Rf8 {[%clk 0:00:52]} 28. g5 {[%clk 0:01:03]} 28... Re8 {[%clk 0:00:47.4]}
29. Bd4 {[%clk 0:00:48]} 29... Qf4 {[%clk 0:00:33]} 30. Qxf4 {[%clk 0:00:43.2]}
30... Bxf4 {[%clk 0:00:33.1]} 31. Rb1 {[%clk 0:00:36.9]} 31... Bxg5 {[%clk
0:00:32]} 32. Bxg7 {[%clk 0:00:37.8]} 32... R8e7 {[%clk 0:00:29]} 33. Bc3 {[%clk
0:00:38.2]} 33... Bf4 {[%clk 0:00:27.8]} 34. b4 {[%clk 0:00:33.3]} 34... Bd6
{[%clk 0:00:29]} 35. b5 {[%clk 0:00:30.4]} 35... Rxa4 {[%clk 0:00:29.1]} 36.
bxa6+ {[%clk 0:00:29.8]} 36... Kxa6 {[%clk 0:00:30.5]} 37. Rb8 {[%clk
0:00:30.8]} 37... Bc5 {[%clk 0:00:17.6]} 38. Rdb1 {[%clk 0:00:29.3]} 38... Bb6
{[%clk 0:00:17.8]} 39. Rg8 {[%clk 0:00:27.1]} 39... Rf4 {[%clk 0:00:13.6]} 40.
Be1 {[%clk 0:00:25.1]} 40... Re6 {[%clk 0:00:13.6]} 41. Rb8 {[%clk 0:00:21.7]}
41... Ka7 {[%clk 0:00:14.3]} 42. Rg8 {[%clk 0:00:22.1]} 42... Kb7 {[%clk
0:00:15.6]} 43. Rb3 {[%clk 0:00:19.4]} 43... Rc4 {[%clk 0:00:16.3]} 44. Rb1
{[%clk 0:00:20]} 44... Ka6 {[%clk 0:00:14.7]} 45. Rb8 {[%clk 0:00:20.4]} 45...
Ka7 {[%clk 0:00:15.8]} 46. Rg8 {[%clk 0:00:21.2]} 46... Kb7 {[%clk 0:00:17.4]}
47. Rd1 {[%clk 0:00:21.7]} 47... Rd4 {[%clk 0:00:17.8]} 48. Rb1 {[%clk
0:00:19.9]} 48... Rd3 {[%clk 0:00:18.8]} 49. Kg2 {[%clk 0:00:17.9]} 49... f4
{[%clk 0:00:20.3]} 50. Rf8 {[%clk 0:00:15.4]} 50... g5 {[%clk 0:00:20.5]} 51.
Rf5 {[%clk 0:00:16]} 51... Rd5 {[%clk 0:00:21.6]} 52. Rf7 {[%clk 0:00:16.9]}
52... Rh6 {[%clk 0:00:22.2]} 53. Bc3 {[%clk 0:00:16.7]} 53... Rd3 {[%clk
0:00:22]} 54. Be5 {[%clk 0:00:17.9]} 54... Kc8 {[%clk 0:00:21.5]} 55. Ra1 {[%clk
0:00:18.5]} 55... Rdxh3 {[%clk 0:00:14]} 56. Rd1 {[%clk 0:00:15]} 56... f3+
{[%clk 0:00:14.5]} 57. Rxf3 {[%clk 0:00:15.8]} 57... Rxf3 {[%clk 0:00:15.4]} 58.
Kxf3 {[%clk 0:00:17.7]} 58... Re6 {[%clk 0:00:16.4]} 59. Bg3 {[%clk 0:00:18.4]}
59... c5 {[%clk 0:00:17.5]} 60. Kg4 {[%clk 0:00:19.6]} 60... Rg6 {[%clk
0:00:17.2]} 61. Kf5 {[%clk 0:00:18.9]} 61... Rg8 {[%clk 0:00:17.9]} 62. Be5
{[%clk 0:00:16.9]} 62... Rf8+ {[%clk 0:00:17.8]} 63. Bf6 {[%clk 0:00:16.6]}
63... c4 {[%clk 0:00:17.5]} 64. f3 {[%clk 0:00:16.8]} 64... c3 {[%clk 0:00:16]}
65. Rc1 {[%clk 0:00:14.6]} 65... Bd4 {[%clk 0:00:16.6]} 0-1

[Event "*** Titled Tuesday Blitz"]
[Site "Chess.com"]
[Date "2019.07.02"]
[Round "2"]
[White "jacky72"]
[Black "Infernal_XaM"]
[Result "0-1"]
[WhiteElo "2626"]
[BlackElo "2879"]
[TimeControl "180+2"]
[EndTime "13:26:14 PDT"]
[Termination "Infernal_XaM won by checkmate"]

1. d4 {[%clk 0:03:01.9]} 1... e6 {[%clk 0:03:01]} 2. c4 {[%clk 0:03:02.4]} 2...
b6 {[%clk 0:03:02]} 3. e4 {[%clk 0:03:01.5]} 3... Bb4+ {[%clk 0:03:01.8]} 4. Bd2
{[%clk 0:03:01.9]} 4... Bxd2+ {[%clk 0:03:02.5]} 5. Qxd2 {[%clk 0:03:03.8]} 5...
d5 {[%clk 0:03:02.2]} 6. cxd5 {[%clk 0:03:01.6]} 6... exd5 {[%clk 0:03:03.3]} 7.
e5 {[%clk 0:03:03.5]} 7... Ne7 {[%clk 0:03:03.3]} 8. Nc3 {[%clk 0:03:03.9]} 8...
O-O {[%clk 0:03:03.5]} 9. Nf3 {[%clk 0:03:04.8]} 9... Bg4 {[%clk 0:03:04.2]} 10.
Be2 {[%clk 0:03:05.7]} 10... c5 {[%clk 0:03:04.4]} 11. h3 {[%clk 0:03:07]} 11...
Bh5 {[%clk 0:03:05]} 12. O-O {[%clk 0:03:07.6]} 12... Nbc6 {[%clk 0:03:05.7]}
13. dxc5 {[%clk 0:03:03.1]} 13... bxc5 {[%clk 0:03:06.7]} 14. Rfe1 {[%clk
0:03:03.2]} 14... Rb8 {[%clk 0:02:52.6]} 15. Rac1 {[%clk 0:03:02.3]} 15... Re8
{[%clk 0:02:40.9]} 16. Na4 {[%clk 0:03:02.2]} 16... c4 {[%clk 0:02:35.8]} 17.
Nd4 {[%clk 0:02:55]} 17... Nxd4 {[%clk 0:02:27.3]} 18. Bxh5 {[%clk 0:02:48.4]}
18... Nec6 {[%clk 0:02:27.3]} 19. Qf4 {[%clk 0:02:31.9]} 19... g6 {[%clk
0:02:19.1]} 20. Bd1 {[%clk 0:02:28.5]} 20... Qc7 {[%clk 0:02:06.3]} 21. b3
{[%clk 0:02:24.8]} 21... Rxe5 {[%clk 0:01:55.6]} 22. Rxe5 {[%clk 0:02:25.3]}
22... Qxe5 {[%clk 0:01:56.7]} 23. Qxe5 {[%clk 0:02:24.3]} 23... Nxe5 {[%clk
0:01:57.7]} 24. bxc4 {[%clk 0:02:25.7]} 24... dxc4 {[%clk 0:01:53.3]} 25. f4
{[%clk 0:02:21.7]} 25... Rb4 {[%clk 0:01:19.8]} 26. fxe5 {[%clk 0:02:21.7]}
26... Rxa4 {[%clk 0:01:20.8]} 27. a3 {[%clk 0:02:10]} 27... Rxa3 {[%clk
0:01:13.9]} 28. Rxc4 {[%clk 0:02:10.4]} 28... Nf5 {[%clk 0:01:15]} 29. Bg4
{[%clk 0:02:01]} 29... Ra1+ {[%clk 0:01:07]} 30. Kh2 {[%clk 0:01:57.1]} 30...
Ne3 {[%clk 0:01:07.7]} 31. Rc8+ {[%clk 0:01:57.6]} 31... Kg7 {[%clk 0:01:08.7]}
32. Bf3 {[%clk 0:01:55.1]} 32... a5 {[%clk 0:01:00.9]} 33. Rc7 {[%clk 0:01:55]}
33... Kf8 {[%clk 0:01:00.7]} 34. Rc3 {[%clk 0:01:44.1]} 34... Nf1+ {[%clk
0:00:57.2]} 35. Kg1 {[%clk 0:01:44.2]} 35... Nd2+ {[%clk 0:00:56.4]} 36. Kf2
{[%clk 0:01:45.5]} 36... Nxf3 {[%clk 0:00:53.5]} 37. Kxf3 {[%clk 0:01:47.4]}
37... a4 {[%clk 0:00:51.4]} 38. Rc7 {[%clk 0:01:47.3]} 38... a3 {[%clk
0:00:50.9]} 39. Ra7 {[%clk 0:01:48.7]} 39... a2 {[%clk 0:00:49.4]} 40. Kg3
{[%clk 0:01:45.4]} 40... Ke8 {[%clk 0:00:48.7]} 41. Kg4 {[%clk 0:01:44.1]} 41...
h6 {[%clk 0:00:47]} 42. h4 {[%clk 0:01:40.1]} 42... Kd8 {[%clk 0:00:47.2]} 43.
Kg3 {[%clk 0:01:31.7]} 43... Kc8 {[%clk 0:00:47.9]} 44. Kg4 {[%clk 0:01:29.3]}
44... Kb8 {[%clk 0:00:48.9]} 45. Ra3 {[%clk 0:01:30.5]} 45... Kb7 {[%clk
0:00:49.5]} 46. Kg3 {[%clk 0:01:32]} 46... Kc6 {[%clk 0:00:50.6]} 47. Kg4 {[%clk
0:01:33.3]} 47... Kd5 {[%clk 0:00:51.7]} 48. Ra5+ {[%clk 0:01:34.5]} 48... Kd4
{[%clk 0:00:52.9]} 49. Kg3 {[%clk 0:01:35.7]} 49... Ke4 {[%clk 0:00:53.8]} 50.
Kg4 {[%clk 0:01:35.3]} 50... Kd3 {[%clk 0:00:41.4]} 51. Kg3 {[%clk 0:01:34.2]}
51... Kd4 {[%clk 0:00:42.3]} 52. Kg4 {[%clk 0:01:29.1]} 52... Ke4 {[%clk
0:00:43.5]} 53. Kg3 {[%clk 0:01:28]} 53... Kf5 {[%clk 0:00:43.5]} 54. Kh2 {[%clk
0:01:27.8]} 54... Kf4 {[%clk 0:00:44.8]} 55. g3+ {[%clk 0:01:23.2]} 55... Ke4
{[%clk 0:00:43.8]} 56. Kg2 {[%clk 0:01:23.6]} 56... g5 {[%clk 0:00:37.1]} 57.
hxg5 {[%clk 0:01:21.5]} 57... hxg5 {[%clk 0:00:38.2]} 58. Kh2 {[%clk 0:01:17.6]}
58... Kf3 {[%clk 0:00:36.8]} 59. Ra3+ {[%clk 0:01:18.1]} 59... Kf2 {[%clk
0:00:36.3]} 60. Ra7 {[%clk 0:01:17.8]} 60... Ke3 {[%clk 0:00:34]} 61. Ra4 {[%clk
0:01:15.9]} 61... g4 {[%clk 0:00:32.1]} 62. Ra3+ {[%clk 0:01:08.4]} 62... Ke4
{[%clk 0:00:31.8]} 63. Ra5 {[%clk 0:01:09.3]} 63... Kd4 {[%clk 0:00:32.8]} 64.
Kg2 {[%clk 0:01:09.2]} 64... Ke3 {[%clk 0:00:33.9]} 65. Ra3+ {[%clk 0:01:09.4]}
65... Kd4 {[%clk 0:00:34.6]} 66. Ra5 {[%clk 0:01:10.2]} 66... Kc4 {[%clk
0:00:36]} 67. Ra7 {[%clk 0:01:09.2]} 67... Kb3 {[%clk 0:00:30.5]} 68. Rb7+
{[%clk 0:01:09.6]} 68... Kc3 {[%clk 0:00:31.8]} 69. Rc7+ {[%clk 0:01:07.1]}
69... Kd4 {[%clk 0:00:32.1]} 70. Rc2 {[%clk 0:01:06]} 70... Kxe5 {[%clk
0:00:32.5]} 71. Rb2 {[%clk 0:01:05.6]} 71... Kd4 {[%clk 0:00:33.5]} 72. Re2
{[%clk 0:00:53.9]} 72... Kd3 {[%clk 0:00:33.5]} 73. Rb2 {[%clk 0:00:52.5]} 73...
Rg1+ {[%clk 0:00:32.5]} 74. Kxg1 {[%clk 0:00:52.3]} 74... a1=Q+ {[%clk
0:00:33.9]} 75. Kh2 {[%clk 0:00:52.5]} 75... Qxb2+ {[%clk 0:00:35.3]} 76. Kh1
{[%clk 0:00:54.4]} 76... Ke3 {[%clk 0:00:36.8]} 77. Kg1 {[%clk 0:00:55]} 77...
Kf3 {[%clk 0:00:38.2]} 78. Kh1 {[%clk 0:00:56.9]} 78... Qg2# {[%clk 0:00:39.5]}
0-1